{"text_format":"1","workbook":"xlsx","n_sheets":3,"sheets":["Hoja1","Hoja2","Hoja3"],"not_rendered":{"charts":0,"images":0,"macros":0,"external_links":0,"defined_names":0,"comments":0,"pivot_tables":0},"unopened":[],"bounds":{"document_bytes":16777216,"sheet_cells":100000,"rows_first":2000,"rows_last":500,"rows_between":2000,"halvings":0,"cell_chars":16384,"cell_head_chars":4096},"cells_cut":0,"cells_raw":0,"read":"whole","date_system":"1900"}

{"sheet":"Hoja1","index":0,"n_rows":35,"n_cols":20,"rows_kept":35,"cut":false,"hidden":false,"merged":[[0,1,0,15],[2,1,2,15]]}
[null,"INSTITUTO TECNOLÓGICO SUPERIOR DE PEROTE"]
[]
[null,"VIÁTICOS EJERCIDOS EN EL MES DE: MAYO 2016"]
[]
["ÁREA","OBJETO O MOTIVO DE LA COMISIÓN","SERV. PÚB. COMISIONADOS","LUGAR DE COMISIÓN","DESTINO DE LA COMISIÓN","FECHA DE INICIO","FECHA DE TERMINO","ORIGEN DEL RECURSO","ALIMENTOS","HOSPEDAJE","PASAJES","PEAJES","TRASLADOS LOCALES","COMBUSTIBLES","IMPORTE EJERCIDO","RESPONSABLE QUE PROPORCIONA LA INFORMACIÓN"]
["ADMO","ASISTIR A ENTREGA DE DOCUMENTACION ",1,"EDO.","XALAPA, VER.","2016-05-03","2016-05-03","FED.",300,null,128,null,100,null,{"$f":"SUM(I6:N6)","v":528},"REC. FINANCIEROS"]
["PYV","ASISTIR A CAPACITACION  DEL COMITÉ DEL COMITÉ DE CONTRALORIA SOCIAL DEL ITSPE DE BECAS DE MANUTENCION ",3,"EDO.","XALAPA, VER.","2016-05-04","2016-05-04","FED.",1250,null,null,{"$f":"111*6","v":666},null,728,{"$f":"SUM(I7:N7)","v":2644},"REC. FINANCIEROS"]
["ACAD","ASISTIR A REUNION EN LA SECRETARIA DE INDESOL",1,"EDO.","XALAPA, VER.","2016-05-05","2016-05-05","FED.",300,null,null,111,null,300,{"$f":"SUM(I8:N8)","v":711},"REC. FINANCIEROS"]
["PYV","ASISTIR A DIFERENTES DEPENDENCIAS A RECABAR FIRMAS DE JUNTA DIRECTIVA ",1,"EDO.","XALAPA, VER.","2016-05-06","2016-05-06","FED.",300,null,null,222,null,200,{"$f":"SUM(I9:N9)","v":722},"REC. FINANCIEROS"]
["PYV","ASISTIR A ENTREGA DE TITULOS EN LA DIRECCION GENERAL DE PROFESIONES ",1,"NAC. ","MEXICO, D.F.","2016-05-12","2016-05-12","FED.",600,null,1200,null,150,null,1950,"REC. FINANCIEROS"]
["ACAD","ASISTIR A REUNION DE TRABAJO EN LA SECRETARIA DE TRABAJO",4,"EDO.","XALAPA, VER.","2016-05-11","2016-05-11","FED.",1000,null,null,222,null,200,1422,"REC. FINANCIEROS",null,null,null," "]
["PYV","ASISTIR A REUNION DE TRABAJO PARA LA ELABORACION DEL PRODET ",2,"NAC. ","MEXICO, D.F.","2016-05-11","2016-05-12","FED.",1320,1725.5,1500,null,null,null,4545.5,"REC. FINANCIEROS"]
["ACAD","ASISTIR A REUNION DE TRABAJO EN LA SECRETARIA DE TRABAJO",4,"EDO.","XALAPA, VER.","2016-05-12","2016-05-12","FED.",1000,null,null,222,null,200,1422,"REC. FINANCIEROS"]
["ACAD","ASISTIR A ENTREGA DE ALCANCIAS EN LA DET",2,"EDO.","XALAPA, VER.","2016-05-13","2016-05-13","FED.",null,null,null,222,null,200,422,"REC. FINANCIEROS"]
["ACAD","ASISTIR A REUNION DE LA FESTEV Y A LA SECRETARIA DEL TRABAJO ",3,"EDO.","XALAPA, VER.","2016-05-17","2016-05-17","FED.",600,null,null,222,null,300,1122,"REC. FINANCIEROS"]
["ACAD","ASISTIR A REUNION DE LA FESTEV Y A LA SECRETARIA DEL TRABAJO ",2,"EDO.","XALAPA, VER.","2016-05-17","2016-05-17","FED.",300,null,null,222,null,300,{"$f":"SUM(I16:N16)","v":822},"REC. FINANCIEROS",null,null," "]
["ACAD","ASISTIR A CONGRESO INTERNACIONAL DE INFORMATICA ",5,"EDO.","BOCA DEL RIO, VER.","2016-05-19","2016-05-21","FED.",4500,4600,null,null,null,null,9100,"REC. FINANCIEROS"]
["PYV","ASISTIR A OFICINAS DEL IMSS PARA RECOGER BASE DE DATOS ",1,"EDO.","XALAPA, VER.","2016-05-18","2016-05-18","FED.",300,null,null,222,null,200,722,"REC. FINANCIEROS"]
["ACAD","ASISTIR A LA SEMARNAT PARA TRABAJAR REQUERIMINETOS PARA RESIDENCIAS PROFESIONALES ",1,"EDO.","XALAPA, VER.","2016-05-19","2016-05-19","FED.",300,null,null,222,null,200,{"$f":"SUM(I19:N19)","v":722},"REC. FINANCIEROS"]
["ACAD","ASISTIR A CONCURSAR EN COESMA ",6,"EDO.","COSAMALOAPAN, VER.","2016-05-25","2016-05-27","FED.",5400,3300,4500,null,500,null,13700,"REC. FINANCIEROS"]
["ACAD","ASISTIR A VERIFICAR NUMERO DE REGISTRO ISBN",2,"NAC. ","MEXICO, D.F.","2016-05-25","2016-05-25","FED.",660,null,900,null,null,null,1560,"REC. FINANCIEROS"]
["ADMO","ASISTIR A LA SECRETARIA DE INFRAESTRUCTURA Y OBRAS PUBLICAS ",1,"EDO.","XALAPA, VER.","2016-05-24","2016-05-24","FED.",null,null,null,222,null,200,422,"REC. FINANCIEROS"]
["ACAD","ASISTIR A PRESENTACION DE PROYECTO ",2,"EDO.","XALAPA, VER.","2016-05-26","2016-05-27","FED.",1200,null,280,null,null,null,1480,"REC. FINANCIEROS"]
["ADMO","ASISTIR A ENTREGAR DE DECLARACIONES PATRIMONIALES ",1,"EDO.","XALAPA, VER.","2016-05-25","2016-05-25","FED.",300,null,136,null,100,null,536,"REC. FINANCIEROS"]
["ACAD","ASISTIR A DERRIBO DE ARBOLES URBANOS",1,"EDO.","PEROTE, VER.","2016-05-25","2016-05-25","FED.",null,null,null,null,null,200,200,"REC. FINANCIEROS"]
["ADMO","ASISTIR A CURSO DE PLATAFORMA COMPRANET EN LA CONTRALORIA GENERAL ",1,"EDO.","XALAPA, VER.","2016-05-26","2016-05-26","FED.",300,null,null,222,null,350,872,"REC. FINANCIEROS"]
["ACAD","ASISTIR A PLATICA SOBRE SANIDAD FORESTAL ",1,"EDO.","BANDERILLA, VER.","2016-05-26","2016-05-26","FED.",null,null,null,222,null,200,{"$f":"SUM(I27:N27)","v":422},"REC. FINANCIEROS"]
["ADMO","ASISTIR A ENTREGAR DE DECLARACIONES PATRIMONIALES ",1,"EDO.","XALAPA, VER.","2016-05-30","2016-05-30","FED.",300,null,128,null,100,null,528,"REC. FINANCIEROS"]
[]
["PyV","DIRECCIÓN DE PLANEACIÓN Y VINCULACIÓN"]
["ACAD.","DIRECCIÓN ACADÉMICA"]
["SIND.","SINDICATO"]
["ADMO.","SUBDIRECCIÓN ADMINISTRATIVA"]
["FED. ","RECURSO FEDERAL"]
["I.P.","INGRESOS PROPIOS"]

{"sheet":"Hoja2","index":1,"n_rows":0,"n_cols":0,"rows_kept":0,"cut":false,"hidden":false,"merged":[]}

{"sheet":"Hoja3","index":2,"n_rows":0,"n_cols":0,"rows_kept":0,"cut":false,"hidden":false,"merged":[]}